[Event "SixDays Budapest March GM B 2025"]
[Site "Budapest"]
[Date "2025.03.27"]
[Round "6.1"]
[White "Pap, Gyula"]
[Black "Mayank Chakraborty"]
[Result "1/2-1/2"]
[Annotator "TA"]
[ECO "C01"]
[WhiteElo "2475"]
[BlackElo "2444"]
[PlyCount "42"]
[EventDate "2025.03.23"]
[EventType "tourn"]
[EventCountry "HUN"]
[SourceTitle "playchess.com"]
[Source "ChessBase"]
[SourceQuality "1"]
[TimeControl "5400+30"]

{[%evp 20,42,21,0,21,0,0,0,0,0,0,0,0,0,0,-1,12,0,0,0,0,0,0,0,0]} 1. e4 {[%emt 0:00:04]} e6 {[%emt 0:00:03]} 2. d4 {[%emt 0:00:28]} d5 {[%emt 0:00:05]} 3. exd5 {[%emt 0:01:16]} exd5 {[%emt 0:00:02]} 4. Nf3 {[%emt 0:00:09]} Nf6 {[%emt 0:00:05]} 5. Bd3 {[%emt 0:00:09]} Bd6 {[%emt 0:00:04]} 6. O-O {[%emt 0:00:38]} O-O {[%emt 0:00:06]} 7. Bg5 {[%emt 0:00:23]} Bg4 {[%emt 0:00:28]} 8. Nbd2 {[%emt 0:00:22]} Nbd7 {[%emt 0:01:36]} 9. c3 {[%emt 0:00:15]} c6 {[%emt 0:01:45]} 10. Qc2 {[%emt 0:01:22]} Qc7 {[%emt 0:00:56]} 11. Rae1 {[%emt 0:01:00] The position is equal.} Rfe8 {[%emt 0:02:09] C01: French: Exchange Variation.} 12. Bh4 {[%emt 0:04:39]} Bh5 {[%emt 0:03:33]} 13. Bg3 {[%emt 0:00:58]} Bxg3 {[%emt 0:01:45]} 14. hxg3 {[%emt 0:00:19]} Bg6 {[%emt 0:01:34]} 15. Bxg6 {[%emt 0:02:46]} hxg6 {[%emt 0:00:06]} 16. Rxe8+ {[%emt 0:01:20]} Rxe8 {[%emt 0:00:07]} 17. Re1 {[%emt 0:00:04]} Qd6 {[%emt 0:03:00]} 18. Rxe8+ $146 {[%emt 0:04:52]} (18. Qb1 c5 19. Rxe8+ Nxe8 20. Qe1 Nc7 21. Qe2 a6 22. Nb3 c4 23. Nbd2 b5 24. a3 {½-½ Piliciauskas,P (1728)-Juksta,K (1760) LTU-ch U12 Vilnius 2015 (4.1)}) 18... Nxe8 {[%emt 0:00:05]} 19. Qa4 {[%emt 0:01:15]} a6 {[%emt 0:01:37]} 20. Qb3 {[%emt 0:00:34]} Qc7 {[%emt 0:07:52]} 21. Qd1 {[%emt 0:01:15]} Nd6 {[%emt 0:03:17] An uneventful encounter.   Weighted Error Value: White=0.06 (flawless) /Black=0.05 (flawless)   OK:         	White=2     	Black=4} 1/2-1/2

[Event "SixDays Budapest March GM B 2025"]
[Site "Budapest"]
[Date "2025.03.27"]
[Round "6.2"]
[White "Baasansuren, Erdene"]
[Black "Sklokin, Sergey"]
[Result "1-0"]
[Annotator "TA"]
[ECO "E01"]
[WhiteElo "2394"]
[BlackElo "2338"]
[PlyCount "89"]
[EventDate "2025.03.23"]
[EventType "tourn"]
[EventCountry "HUN"]
[SourceTitle "playchess.com"]
[Source "ChessBase"]
[SourceQuality "1"]
[TimeControl "5400+30"]

{[%evp 17,89,6,-7,7,8,8,8,-10,-5,-5,8,3,-5,-16,12,16,37,0,6,33,42,58,77,47,106,93,121,120,106,97,88,65,97,73,58,11,122,130,211,197,189,194,191,154,150,171,138,132,138,135,204,202,196,164,153,71,166,177,185,189,237,170,289,316,1827,1516,2287,1872,5385,5414,5406,5406,5381,1751]} 1. d4 {[%emt 0:03:51]} d5 {[%emt 0:00:07]} 2. c4 {[%emt 0:00:18]} e6 {[%emt 0:00:05]} 3. g3 {[%emt 0:00:15]} Nf6 {[%emt 0:00:07]} 4. Bg2 {[%emt 0:00:14]} Bb4+ {[%emt 0:00:20]} 5. Nd2 {[%emt 0:00:35]} O-O {[%emt 0:01:48]} 6. Ngf3 {[%emt 0:01:12]} b6 {[%emt 0:00:27]} 7. O-O {[%emt 0:00:15]} Bb7 {[%emt 0:01:12]} 8. a3 {[%emt 0:00:20]} Be7 {[%emt 0:00:06]} 9. cxd5 {[%emt 0:00:25]} exd5 {[%emt 0:00:06]} 10. b4 {[%emt 0:00:03] E16: Queen's Indian: 4 g3 Bb7 5 Bg2 Bb4+.} a5 {[%emt 0:00:15]} 11. b5 {[%emt 0:00:10]} c6 {[%emt 0:00:11]} 12. Qa4 {[%emt 0:00:09] The position is equal. 12.bxc6 is vanishing.} cxb5 {[%emt 0:00:11]} 13. Qxb5 {[%emt 0:00:07]} Ba6 {[%emt 0:00:06]} 14. Qb2 {[%emt 0:00:08]} Nbd7 {[%emt 0:00:11] is more profitable than 14...Nc6 at the moment.} 15. Ne5 {[%emt 0:00:13]} Nxe5 {[%emt 0:00:20]} 16. dxe5 {[%emt 0:00:05]} Nd7 {[%emt 0:00:06][%cal Od7e5,Bf6d7,Bd7c5,Bc5a4,Ba4c3][%mdl 32]} 17. Nf3 {[%emt 0:00:48][%cal Bd2f3,Bf3d4,Bd4e6,Be6f4,Bf4d3][%mdl 32]} (17. Bxd5 $5 Bxe2 18. Re1 $16) 17... Nc5 {[%emt 0:22:50]} 18. Nd4 {[%emt 0:06:47]} Rc8 $146 {[%emt 0:04:57]} ({Predecessor:} 18... Qd7 19. Bf4 b5 20. h4 Rfc8 21. Qa2 Ne6 22. Rfd1 Nxf4 23. gxf4 Bb7 24. Qb3 Rc4 25. Qxb5 Qxb5 26. Nxb5 Rxf4 {1-0 Chigaev,M (2628)-Can,E (2575) Sharjah Masters 6th 2023 (3)}) 19. Be3 {[%emt 0:11:02]} Na4 {[%emt 0:15:26]} 20. Qd2 {[%emt 0:28:49]} Qd7 {[%emt 0:24:03] [#]} (20... Bc5 $14) 21. e6 $1 $16 {[%emt 0:03:45][%mdl 512]} fxe6 {[%emt 0:02:50] [#]} 22. Nxe6 $1 {[%emt 0:00:18][%csl Od5][%mdl 512] White attacks a weakness} Rf5 {[%emt 0:09:11]} (22... Qxe6 $2 23. Bxd5 Bc4 24. Bxe6+ $18) 23. Nf4 {[%emt 0:09:23]} Nc3 {[%emt 0:07:52]} 24. Bh3 {[%emt 0:05:54][%cal Of1c1]} g5 $1 {[%emt 0:00:52]} 25. Nd3 {[%emt 0:04:48]} (25. Bd4 Ne4 26. Qb2 (26. Bxf5 $2 Qxf5 27. Nxd5 Qxd5 $19) 26... gxf4 $17) 25... Bf6 {[%emt 0:02:39][%cal Od5d4] Prevents Bd4} 26. Bxb6 {[%emt 0:03:42]} d4 {[%emt 0:00:43]} 27. Bxa5 {[%emt 0:05:55]} Bb7 {[%emt 0:01:03]} (27... h5 $16) 28. Bxc3 {[%emt 0:01:21]} (28. Bxf5 $6 Qxf5 29. Bb4 Qe4 $14) 28... dxc3 {[%emt 0:00:17]} 29. Qc2 {[%emt 0:00:45][%cal Od3b4]} (29. Bxf5 Qxf5 30. Qc2 Bd4 $11) 29... Bd4 {[%emt 0:02:08][%cal Od7c6]} 30. Rab1 {[%emt 0:03:33]} Ba8 {[%emt 0:00:38][%cal Od7c6] [#] And now ...Qc6! would win.} 31. Nf4 $1 {[%emt 0:02:27][%mdl 512]} Qc6 {[%emt 0:01:49]} 32. Bg2 {[%emt 0:00:29][%cal Bh3g2,Bg2a8,Ba8e4][%mdl 32]} (32. Qxf5 $2 Qh1#) 32... Qf6 {[%emt 0:00:30]} 33. Bxa8 $1 {[%emt 0:02:36]} gxf4 {[%emt 0:01:17]} (33... Rxa8 $16 {was necessary.} 34. Nd3 Rf8 35. Qb3+ (35. e3 Bxe3 36. Qe2 Bd4 $11) 35... Kh8) 34. Be4 $18 {[%emt 0:00:37]} Rh5 {[%emt 0:01:09]} 35. Bf3 {[%emt 0:01:38]} Rh6 {[%emt 0:01:23] [#]} 36. Rfd1 {[%emt 0:02:13]} ({Better is} 36. Qe4 $1) 36... fxg3 {[%emt 0:00:31]} (36... Kh8 $16) 37. hxg3 {[%emt 0:00:06]} Qe5 {[%emt 0:00:16]} 38. e3 {[%emt 0:02:44]} Bxe3 {[%emt 0:00:14] [#]} 39. Kg2 $36 {[%emt 0:00:44][%cal Od1e1][%mdl 2048] And now Re1! would win. White is in control.} ({But not} 39. fxe3 Kh8) 39... Bc5 {[%emt 0:01:04]} (39... Bd4 $142 40. Rb4 Rd6) 40. Rd5 {[%emt 0:00:30]} Qg7 {[%emt 0:00:34] [#]} (40... Qf6 41. Rf5 Qd4) 41. Rxc5 $1 {[%emt 0:00:31][%mdl 512] White is clearly winning.} Rxc5 {[%emt 0:00:08]} (41... Rf8 42. Rb7) 42. Rb8+ {[%emt 0:00:41]} Qf8 {[%emt 0:00:22]} 43. Qb3+ {[%emt 0:00:41]} Kg7 {[%emt 0:00:09]} 44. Rxf8 {[%emt 0:00:18]} Kxf8 {[%emt 0:00:07]} 45. Qb4 {[%emt 0:00:09] Weighted Error Value: White=0.10 (very precise) /Black=0.84  Mistake:       	White=1     	Black=7      Inaccurate:     	White=2     	Black=2      OK:         	White=12    	Black=10     Best:        	White=3     	Black=2      Strong:       	White=1     	Black=1      Brilliant:      	White=3     	---} 1-0

[Event "SixDays Budapest March GM B 2025"]
[Site "Budapest"]
[Date "2025.03.27"]
[Round "6.3"]
[White "Grover, Sahaj"]
[Black "Sandoval Mercado, Carlos"]
[Result "0-1"]
[Annotator "TA"]
[ECO "B87"]
[WhiteElo "2469"]
[BlackElo "2383"]
[PlyCount "62"]
[EventDate "2025.03.23"]
[EventType "tourn"]
[EventCountry "HUN"]
[SourceTitle "playchess.com"]
[Source "ChessBase"]
[SourceQuality "1"]
[TimeControl "5400+30"]

{[%evp 15,62,-25,2,-13,-4,-14,79,20,62,0,0,-44,38,60,83,89,120,0,0,0,0,-74,-92,-87,-81,-111,-130,-118,-88,-152,-138,-239,-124,-241,-206,-267,-254,-379,-379,-398,-371,-370,-320,-331,-181,-422,-431,-651,-651]} 1. e4 {[%emt 0:04:00]} c5 {[%emt 0:00:07]} 2. Nf3 {[%emt 0:00:07]} d6 {[%emt 0:00:14]} 3. d4 {[%emt 0:00:07]} cxd4 {[%emt 0:00:05]} 4. Nxd4 {[%emt 0:00:05]} Nf6 {[%emt 0:00:08]} 5. Nc3 {[%emt 0:00:05]} a6 {[%emt 0:00:06]} 6. Bc4 {[%emt 0:00:14]} e6 {[%emt 0:00:07]} 7. Bb3 {[%emt 0:00:09]} b5 {[%emt 0:02:05]} 8. Qf3 {[%emt 0:01:23]} Bb7 {[%emt 0:04:27]} 9. O-O {[%emt 0:00:07][%cal Ob3e6] B87: Sicilian Scheveningen/Najdorf: 6 Bc4, with early ...b5.} Nbd7 {[%emt 0:02:13]} 10. Re1 {[%emt 0:00:06]} Be7 {[%emt 0:01:05]} (10... Nc5 $1 $11) 11. Qg3 {[%emt 0:09:52]} (11. Bxe6 $1 $16 Ne5 (11... fxe6 12. Nxe6 Ne5 13. Qh3 $11) 12. Qh3) 11... Ne5 {[%emt 0:08:10]} 12. f3 {[%emt 0:21:38] Inhibits Nfg4.} (12. Qxg7 $14 Rg8 13. Qh6) 12... O-O $1 $11 {[%emt 0:03:46]} 13. Bxe6 $146 {[%emt 0:28:05]} ({Predecessor:} 13. Rd1 Rc8 14. Nce2 Nfd7 15. c3 Nc5 16. Bc2 Bf6 17. Nf4 g6 18. Nfe2 Re8 19. Kh1 {½-½ Mokrys,C (2511)-Pellen,M (2487) Klovans Memorial email 2011}) 13... Ne8 {[%emt 0:17:52] Black sacrificed a pawn} (13... fxe6 $2 14. Nxe6 Qb6+ 15. Be3 $18) (13... Nfg4 $15 14. Nf5 (14. Bxg4 Bh4 $17) 14... fxe6 15. Nxe7+ Qxe7 16. fxg4 b4) 14. Bf5 $1 $14 {[%emt 0:07:31]} g6 {[%emt 0:07:52]} 15. Rd1 $1 {[%emt 0:04:12]} Ng7 {[%emt 0:13:19][%cal Oe7h4] [#]} 16. Bh3 {[%emt 0:03:26]} ({Better is} 16. f4 $1 $16) 16... Bh4 $36 {[%emt 0:03:12][%mdl 2048] Black is pushing.} 17. Qf4 {[%emt 0:00:04] Strongly threatening b3.} Nc4 $1 {[%emt 0:00:18]} 18. Qh6 {[%emt 0:02:38] [#]} (18. Nd5 $1 $11) 18... Nxb2 $1 $17 {[%emt 0:00:35]} 19. Rf1 {[%emt 0:09:32][%cal Oc3b5]} (19. Bxb2 $2 {is the wrong capture.} Bg5 $19) 19... Nc4 {[%emt 0:07:11]} 20. Nd1 {[%emt 0:00:05]} Bf6 {[%emt 0:01:12]} 21. c3 {[%emt 0:00:04]} b4 {[%emt 0:10:16]} 22. Ne2 {[%emt 0:01:14]} (22. Rb1 $142) 22... d5 {[%emt 0:04:38]} 23. exd5 {[%emt 0:03:58]} (23. Nf2 $17) 23... Qxd5 {[%emt 0:02:04]} (23... Re8 $19 24. Ng3 Bxd5 (24... bxc3 $2 25. Ne4 $19)) 24. Rb1 {[%emt 0:00:38]} (24. Ng3 $17) 24... Rfe8 {[%emt 0:03:21]} 25. Ng3 {[%emt 0:00:57]} bxc3 {[%emt 0:01:37]} 26. Ne4 {[%emt 0:01:03]} (26. Nf2 {was necessary.}) 26... Qd4+ $19 {[%emt 0:02:15]} 27. Nef2 {[%emt 0:01:50]} Bc6 {[%emt 0:01:52] ...c2 would now be deadly.} 28. Rb3 {[%emt 0:00:09]} c2 {[%emt 0:03:02]} 29. Ne3 {[%emt 0:00:48]} Bb5 {[%emt 0:00:37]} (29... Nxe3 $142 30. Bxe3 Qc4) 30. Re1 {[%emt 0:00:44]} (30. Nxc2 Qc5 31. Nb4) 30... Qc5 {[%emt 0:00:31]} 31. Ne4 {[%emt 0:00:21] [#] Repels Bg5} (31. Nxc2 $142 Rad8 32. Rxb5 Rxe1+ (32... Qxb5 $2 33. Ne4 $19) (32... axb5 $2 33. Kf1 $19) 33. Nxe1 axb5 34. Kf1) 31... Rxe4 $1 {[%emt 0:00:08][%mdl 512] Weighted Error Value: White=0.60/Black=0.28 (precise)   Mistake:       	White=10    	Black=4      Inaccurate:     	White=2     	Black=2      OK:         	White=6     	Black=2      Best:        	---       	Black=4      Strong:       	White=2     	Black=2      Brilliant:      	---       	Black=2} 0-1

[Event "SixDays Budapest March GM B 2025"]
[Site "Budapest"]
[Date "2025.03.27"]
[Round "6.4"]
[White "Mirzoev, Azer"]
[Black "Li, Wenxiang"]
[Result "1-0"]
[Annotator "TA"]
[ECO "D11"]
[WhiteElo "2470"]
[BlackElo "2260"]
[PlyCount "149"]
[EventDate "2025.03.23"]
[EventType "tourn"]
[EventCountry "HUN"]
[SourceTitle "playchess.com"]
[Source "ChessBase"]
[SourceQuality "1"]
[TimeControl "5400+30"]

{[%evp 10,149,15,0,4,4,0,0,16,0,22,0,18,5,8,-7,-4,0,-2,-18,0,-14,-24,-33,7,-8,-15,-12,0,0,0,-1,2,9,6,0,20,0,0,0,0,0,0,0,0,0,0,-23,-25,-45,-29,-41,-32,-37,-10,-15,0,-33,-36,-43,-10,-42,-46,-47,0,0,3,-41,-29,-30,-46,-45,0,-12,0,0,0,0,60,44,55,45,56,50,51,48,42,52,85,77,66,72,72,82,83,73,112,82,139,132,132,153,125,151,137,20,73,22,22,0,8,0,52,40,32,40,222,221,243,14,14,0,239,233,238,395,395,376,1673,1705,1705,1705,1705,1705,1161,1060,5093,1591,5447,5447,5447,5422]} 1. d4 {[%emt 0:00:02]} d5 {[%emt 0:02:17]} 2. c4 {[%emt 0:00:04]} c6 {[%emt 0:00:11]} 3. Nf3 {[%emt 0:00:05]} Nf6 {[%emt 0:00:07]} 4. Qc2 {[%emt 0:00:05]} dxc4 {[%emt 0:00:35]} 5. Qxc4 {[%emt 0:00:04]} Bg4 {[%emt 0:00:07]} 6. Nbd2 {[%emt 0:00:05]} Nbd7 {[%emt 0:00:12] D23: Queen's Gambit Accepted: 3 Nf3 Nf6 sidelines.} 7. g3 {[%emt 0:00:11]} e6 {[%emt 0:00:06]} 8. Bg2 {[%emt 0:00:06]} Be7 {[%emt 0:00:08] The position is equal.} 9. O-O {[%emt 0:00:09]} O-O {[%emt 0:00:04]} 10. Qb3 {[%emt 0:00:31]} Qb6 {[%emt 0:00:14]} 11. Nc4 {[%emt 0:00:08]} Qa6 {[%emt 0:00:01]} 12. Bf4 {[%emt 0:00:19]} Nb6 {[%emt 0:04:04]} 13. Rfc1 {[%emt 0:02:16]} Nxc4 {[%emt 0:03:24]} 14. Rxc4 $146 {[%emt 0:00:35]} (14. Qxc4 Qxc4 15. Rxc4 Rfd8 16. Rac1 Nd5 17. h3 Bh5 18. Bd2 Nb6 19. Ba5 Bxf3 20. Bxf3 {0-1 Kessler,L (2407)-Schneider,I (2507) AUT-chT 1819 2018 (4.1)}) 14... Qb6 {[%emt 0:01:22]} 15. h3 {[%emt 0:02:06]} Bf5 {[%emt 0:07:57]} 16. Ne5 {[%emt 0:24:14]} h6 {[%emt 0:00:59]} 17. g4 {[%emt 0:02:52]} Bh7 {[%emt 0:00:13]} 18. e3 {[%emt 0:00:22]} Rfd8 {[%emt 0:03:36]} 19. Rcc1 {[%emt 0:00:53]} Bd6 {[%emt 0:11:00]} 20. Bh2 {[%emt 0:05:56]} Ne4 {[%emt 0:08:14]} 21. Rd1 {[%emt 0:12:16]} Nf6 {[%emt 0:16:15]} 22. Rac1 {[%emt 0:00:48]} Be4 {[%emt 0:03:09]} 23. f3 {[%emt 0:13:30]} Bh7 {[%emt 0:01:04]} 24. e4 {[%emt 0:07:54]} Nd7 {[%emt 0:02:51]} 25. Nc4 {[%emt 0:07:29][%csl LRb6,LRd6]} Bxh2+ {[%emt 0:00:03]} 26. Kxh2 {[%emt 0:00:03]} Qc7+ {[%emt 0:02:17]} 27. Kg1 {[%emt 0:00:06]} Nb6 {[%emt 0:01:08]} 28. Ne3 {[%emt 0:02:12]} Rd7 {[%emt 0:05:34]} 29. Rd2 {[%emt 0:00:24]} Rad8 {[%emt 0:00:24]} 30. Rcd1 {[%emt 0:00:30]} Qf4 {[%emt 0:01:27]} 31. Nf1 {[%emt 0:03:13]} Qf6 {[%emt 0:06:21][%cal Rd7d4]} 32. Qc3 {[%emt 0:00:38]} Nc8 {[%emt 0:00:27]} 33. b3 {[%emt 0:01:49]} Ne7 {[%emt 0:01:10]} 34. Ng3 {[%emt 0:01:45]} Ng6 {[%emt 0:03:09]} 35. Ne2 {[%emt 0:00:10]} Qg5 {[%emt 0:02:46]} 36. Rd3 {[%emt 0:00:45]} Nh4 {[%emt 0:02:26]} (36... f5 $15 {is superior.}) 37. Bh1 $11 {[%emt 0:00:27]} f5 {[%emt 0:03:12]} 38. Qd2 {[%emt 0:02:26]} fxe4 {[%emt 0:01:28]} 39. Qxg5 {[%emt 0:00:29]} hxg5 {[%emt 0:00:31]} 40. fxe4 {[%emt 0:00:06]} Kf8 {[%emt 0:01:15]} 41. Rf1+ {[%emt 0:00:33]} Ke7 {[%emt 0:01:25]} 42. Rc3 {[%emt 0:01:59]} e5 {[%emt 0:01:31]} 43. d5 {[%emt 0:00:12]} cxd5 {[%emt 0:00:13]} (43... Ng6 $11) 44. exd5 $14 {[%emt 0:00:05]} e4 {[%emt 0:01:27]} 45. Ng3 {[%emt 0:01:42]} Rxd5 {[%emt 0:00:15]} 46. Nxe4 {[%emt 0:00:29]} Bxe4 {[%emt 0:02:42]} 47. Bxe4 {[%emt 0:00:04]} Rd2 {[%emt 0:00:22]} 48. Bxb7 {[%emt 0:01:13]} Ng6 {[%emt 0:01:39][%cal Og6f4]} 49. Re3+ {[%emt 0:04:27]} Kd6 {[%emt 0:00:13]} 50. Rf2 {[%emt 0:00:12]} Kc7 {[%emt 0:00:43]} 51. Ba6 {[%emt 0:02:42]} Nf4 {[%emt 0:00:22]} 52. a4 {[%emt 0:00:44]} Kb6 {[%emt 0:01:31]} 53. Bf1 {[%emt 0:00:23]} Kc5 {[%emt 0:01:20]} (53... Rd1 $142) 54. Rxd2 $1 $16 {[%emt 0:01:50]} Rxd2 {[%emt 0:00:02][%mdl 4096] Endgame KRB-KRN. White is a pawn up.} 55. Re7 {[%emt 0:00:37][%csl LRa7,LRg7]} Kd4 {[%emt 0:00:56]} 56. Rxa7 {[%emt 0:00:15]} Rb2 {[%emt 0:01:06]} 57. Rxg7 {[%emt 0:01:10]} ({Better is} 57. Bc4 $16) 57... Rb1 $11 {[%emt 0:00:15]} 58. Rc7 {[%emt 0:01:45]} (58. Rxg5 $2 {loses.} Nxh3+ 59. Kg2 Nxg5 $19) (58. h4 $1 $16 {[%cal Rh4h5]} Ke3 59. hxg5 (59. Rxg5 Nh3+ 60. Kg2 Nf4+ 61. Kg3 Rxf1 $16) 59... Ne2+ 60. Kg2 Nf4+ 61. Kg3 (61. Kg1 Ne2+ 62. Kg2 Nf4+ 63. Kg3 Rxf1 $16) 61... Rxf1 62. Re7+ Kd3 63. Re8) 58... Nxh3+ {[%emt 0:00:33]} 59. Kh2 {[%emt 0:00:06]} Nf4 {[%emt 0:00:13]} 60. Rc4+ {[%emt 0:00:23]} Ke3 {[%emt 0:00:09]} (60... Ke5 $11) 61. Rc3+ $14 {[%emt 0:00:18]} Kd4 {[%emt 0:01:07]} 62. Rf3 {[%emt 0:00:09]} Ke4 $2 {[%emt 0:00:06]} (62... Ng6 $14) 63. Kg3 $18 {[%emt 0:00:39]} Ra1 {[%emt 0:00:49]} 64. Rf2 $2 {[%emt 0:00:22]} (64. Bg2 $18 {and Rf1+ should not be overlooked} Ke5 65. Re3+ Kd4 66. Re4+ Kc3 67. Re5) 64... Ke3 $11 {[%emt 0:00:34]} 65. Rf3+ $2 {[%emt 0:00:17]} (65. b4 $11) 65... Ke4 $18 {[%emt 0:00:02]} 66. Bg2 {[%emt 0:01:01]} Kd4 {[%emt 0:01:06] [#]} 67. Rxf4+ $1 {[%emt 0:00:17]} gxf4+ {[%emt 0:00:02]} 68. Kxf4 {[%emt 0:00:02] KR-KB} Ra3 $2 {[%emt 0:00:34]} (68... Kc5 69. Be4 Ra3) 69. g5 {[%emt 0:00:09][%cal Bg4g5,Bg5g6,Bg6g7][%mdl 32] White is clearly winning.} Rxb3 {[%emt 0:00:14] [#]} 70. g6 $1 {[%emt 0:00:13]} Rb2 {[%emt 0:00:42]} 71. Bf3 {[%emt 0:00:24]} Rb8 {[%emt 0:00:38]} 72. Kg5 {[%emt 0:02:01]} Rf8 {[%emt 0:00:38]} 73. Bd1 {[%emt 0:00:18]} (73. Bg4 $142 Rd8 74. g7) 73... Ke5 {[%emt 0:01:09]} 74. g7 {[%emt 0:00:18]} Rg8 {[%emt 0:00:09]} 75. Kg6 {[%emt 0:00:08] Weighted Error Value: White=0.11 (very precise) /Black=0.12 (very precise)   Loses game:     	---       	Black=1      Missed win:     	White=1     	---        Mistake:       	White=3     	Black=5      Inaccurate:     	White=3     	Black=6      OK:         	White=25    	Black=19     Best:        	White=4     	Black=8      Strong:       	White=1     	---} 1-0

[Event "SixDays Budapest March GM B 2025"]
[Site "Budapest"]
[Date "2025.03.27"]
[Round "6.5"]
[White "Nemeth, Zalan"]
[Black "Krishna C R G"]
[Result "1/2-1/2"]
[Annotator "RC"]
[ECO "D11"]
[WhiteElo "2341"]
[BlackElo "2418"]
[PlyCount "39"]
[EventDate "2025.03.23"]
[EventType "tourn"]
[EventCountry "HUN"]
[SourceTitle "playchess.com"]
[Source "ChessBase"]
[SourceQuality "1"]
[TimeControl "5400+30"]

1. d4 {[%emt 0:00:02]} d5 {[%emt 0:11:00]} 2. c4 {[%emt 0:00:08]} c6 {[%emt 0:00:35]} 3. Nf3 {[%emt 0:00:06]} Nf6 {[%emt 0:00:06]} 4. e3 {[%emt 0:00:05]} a6 {[%emt 0:01:00]} 5. Nc3 {[%emt 0:00:19]} b5 {[%emt 0:01:45]} 6. cxd5 {[%emt 0:04:30]} cxd5 {[%emt 0:00:31]} 7. Bd3 {[%emt 0:01:06]} e6 {[%emt 0:01:32]} 8. O-O {[%emt 0:00:20]} Bb7 {[%emt 0:02:23]} 9. Ne5 {[%emt 0:03:14]} Nbd7 {[%emt 0:01:06]} 10. f4 {[%emt 0:00:26]} Bd6 {[%emt 0:01:19]} 11. Bd2 {[%emt 0:01:00]} Ne4 {[%emt 0:07:33]} 12. a4 {[%emt 0:10:41]} b4 {[%emt 0:02:27]} 13. Nxe4 {[%emt 0:00:15]} dxe4 {[%emt 0:00:02]} 14. Bc4 {[%emt 0:00:36]} Rc8 {[%emt 0:19:16]} 15. Qb3 {[%emt 0:14:28]} a5 {[%emt 0:03:03]} 16. Nxd7 {[%emt 0:05:25]} Qxd7 {[%emt 0:03:13]} 17. Bb5 {[%emt 0:00:10]} Bc6 {[%emt 0:00:01]} 18. Bxc6 {[%emt 0:03:12]} Rxc6 {[%emt 0:00:37]} 19. Rfc1 {[%emt 0:00:12]} Ke7 {[%emt 0:08:17]} 20. Rxc6 {[%emt 0:00:53]} 1/2-1/2